Cogmind - Beta 14 @@@ ROGUE MODE // 2024.09.20 @ 21:11:18 // Winter2019/RPGLIKE Player: ZarZap Result: Destroyed by Y-45 Defender with Heavy Assault Rifle Performance ------------- Evolutions (1) 500 Regions Visited (2) 400 Robots Destroyed (3) 15 Value Destroyed (106) 106 Prototype IDs (0) 0 Alien Tech Used (0) 0 Bonus (0) 0 TOTAL SCORE: 1021 Bonus ------- None Cogmind --------- Core Integrity 0/600 Matter 251/300 Energy 86/125 System Corruption 0% Temperature Cool (9) Movement Walking (120) Location -9/Materials Parts ------- > --- POWER (1) -------- Light Ion Engine > --- PROPULSION (3) --- Aluminum Leg Aluminum Leg Improved Aluminum Leg > --- UTILITY (2) ------ Terrain Scanner > --- WEAPON (2) ------- Minigun High-powered Shotgun > --- INVENTORY (3) ---- Light Assault Rifle Peak State ------------ > --- POWER ------------ Light Ion Engine > --- PROPULSION ------- Aluminum Leg Aluminum Leg Improved Aluminum Leg > --- UTILITY ---------- Terrain Scanner > --- WEAPON ----------- Minigun High-powered Shotgun > --- INVENTORY -------- Light Assault Rifle [Rating: 12] Favorites ----------- Power Light Ion Engine Engine Light Ion Engine Propulsion Aluminum Leg Leg Aluminum Leg Utility Terrain Scanner Device Terrain Scanner Weapon Small Laser Energy Gun Small Laser Ballistic Gun Light Assault Rifle Build | -11 -10 -9 ------- Run | Yrd Mat Mat Slots Evolved 4 | 4 . . Power . | . . . Propulsion 2 | 2 . . Utility 1 | 1 . . Weapon 1 | 1 . . Parts Attached 6 | 2 1 3 Power . | . . . Engine . | . . . Core . | . . . Reactor . | . . . Propulsion 2 | 1 . 1 Treads . | . . . Leg 2 | 1 . 1 Wheel . | . . . Hover . | . . . Flight . | . . . Utility 1 | . 1 . Device 1 | . 1 . Storage . | . . . Processor . | . . . Hackware . | . . . Protection . | . . . Artifact . | . . . Weapon 3 | 1 . 2 Energy Gun . | . . . Energy Cannon . | . . . Ballistic Gun 3 | 1 . 2 Ballistic Cannon . | . . . Launcher . | . . . Special Weapon . | . . . Impact Weapon . | . . . Slashing Weapon . | . . . Piercing Weapon . | . . . Special Melee Weapon . | . . . Unidentified Prototypes . | . . . Parts Lost . | . . . Power . | . . . Propulsion . | . . . Utility . | . . . Weapon . | . . . Highest Loss Streak . | . . . To Critical Strikes . | . . . Average Slot Usage (%) 74 | . 65 86 Engine 12 | . 12 12 Leg 29 | . 25 36 Device 6 | . 3 12 Energy Gun 12 | . 12 12 Ballistic Gun 12 | . 12 12 Peak Build Rating 12 | 5 6 12 Average Rating 6 | 3 5 7 On Entrance 4 | 3 5 6 Naked Turns . | . . . Heaviest Build 8 | 5 6 8 Greatest Support 33 | 20 20 33 Greatest Overweight (x) . | . . . Average Overweight (x) . | . . . Largest Inventory Capacity 3 | . . 3 Average Capacity 1 | . . 2 Most Carried 1 | . . 1 Average Carried . | . . . Final Capacity 3 | . . 3 Final Carried 1 | . . 1 Class Distribution -------------------- 100% | Mutant Dominant Class ---------------- Mutant | -10/Materials Mutant | -9/Materials Resources | -11 -10 -9 ----------- Run | Yrd Mat Mat Matter Collected 240 | 200 40 . Remotely . | . . . Salvage Created 108 | . 108 . Parts 2 | . 2 . Haulers Intercepted . | . . . Recyclers Shooed . | . . . Parts Field Recycled . | . . . Retrieved Matter . | . . . Parts Self-Destructed . | . . . Prevented . | . . . Kills | -11 -10 -9 ------- Run | Yrd Mat Mat Combat Hostiles Destroyed 2 | . 2 . Guns 1 | . 1 . AOE 1 | . 1 . Classes Destroyed 2 | . 2 . Builder 1 | . 1 . Grunt 2 | . 2 . Best Kill Streak 2 | . 2 . Combat Bots Only 1 | . 1 . Max Kills in Single Turn 1 | . 1 . Gunslinging . | . . . Exploded 1 | . 1 . Melee . | . . . Uniques/NPCs Destroyed . | . . . Combat | -11 -10 -9 -------- Run | Yrd Mat Mat Hostile Shots Fired 78 | . 40 38 Missed 23 | . 9 14 Damage Taken 740 | . 376 364 Core 605 | . 304 301 Absorbed by Shields . | . . . Redirected to Core 456 | . 227 229 Core Remaining (%) 74 | 100 49 . Volleys Fired 29 | . 21 8 Largest 2 | . 2 2 Hottest 60 | . 60 60 Shots Fired 57 | . 41 16 Gun 57 | . 41 16 Cannon . | . . . Launcher . | . . . Special . | . . . Kinetic 29 | . 21 8 Thermal 28 | . 20 8 Explosive . | . . . Electromagnetic . | . . . Robot Hit Streak 18 | . 18 9 Robot Miss Streak 4 | . 4 1 Penetration Max . | . . . Secondary Targets 1 | . 1 . Max Gunslinging Chain 1 | . 1 . Shots Hit Robots 44 | . 31 13 Core Hits 8 | . 7 1 Critical Kills . | . . . Critical Parts Destroyed 1 | . . 1 Critical Strikes 1 | . . 1 Destroy 1 | . . 1 Melee Attacks . | . . . Impact . | . . . Slashing . | . . . Piercing . | . . . Sneak Attacks . | . . . Combat Hostiles . | . . . Follow-up Attacks . | . . . Damage Inflicted 521 | . 398 123 Guns 415 | . 292 123 Cannons . | . . . Explosions 106 | . 106 . Melee . | . . . Ramming . | . . . Kinetic 188 | . 131 57 Thermal 227 | . 161 66 Explosive 106 | . 106 . Electromagnetic . | . . . Impact . | . . . Slashing . | . . . Piercing . | . . . Highest Corruption . | . . . Average Corruption . | . . . Corruption Purged . | . . . Corruption Blocked . | . . . Overload Shots . | . . . Overflow Damage . | . . . Projectiles . | . . . Explosions . | . . . Melee . | . . . Knockbacks . | . . . Impact . | . . . Kinetic . | . . . Secondary . | . . . Self-Inflicted Damage . | . . . Shots . | . . . Rammed . | . . . Targets Rammed . | . . . Kicked . | . . . Crushed . | . . . Highest Temperature 260 | . 260 105 Average Temperature 110 | . 137 48 Received Heat Transfer 348 | . 213 135 Siege Activations . | . . . Robots Corrupted . | . . . Combat Hostiles . | . . . Parts Fried . | . . . Impact Corruptions . | . . . Robots Melted . | . . . Combat Hostiles . | . . . Parts Melted . | . . . Heat Transferred 500 | . 350 150 Parts Sabotaged . | . . . Parts Stolen . | . . . Parts Stripped . | . . . Power Chain Reactions . | . . . Alert | -11 -10 -9 ------- Run | Yrd Mat Mat Peak Influence 114 | . 114 63 Initial 48 | . . 48 Average 49 | . 47 54 Maximum Alert Level . | . . . Low Security (%) 100 | 100 100 100 Level 1 . | . . . Level 2 . | . . . Level 3 . | . . . Level 4 . | . . . Level 5 . | . . . High Security . | . . . Max Security . | . . . Squads Dispatched . | . . . Investigation . | . . . Extermination . | . . . Reinforcement . | . . . Assault . | . . . Garrison . | . . . Intercept . | . . . Searches Triggered . | . . . Construction Impeded . | . . . Haulers Reinforced . | . . . Active Scanning Responses . | . . . Cargo Convoy Interrupts . | . . . Stealth | -11 -10 -9 --------- Run | Yrd Mat Mat Distress Signals . | . . . Communications Jammed . | . . . Distress Signals . | . . . Times Spotted 6 | . 4 2 Peak Tracking Total 2 | . 2 2 Tactical Retreats . | . . . Traps | -11 -10 -9 ------- Run | Yrd Mat Mat Traps Triggered . | . . . Indirectly . | . . . Trap Hack Attempts . | . . . Triggered . | . . . Disarmed . | . . . Reprogrammed . | . . . Reused . | . . . Traps Extracted . | . . . Installed . | . . . Triggered . | . . . Machines | -11 -10 -9 ---------- Run | Yrd Mat Mat Machines Disabled 2 | . 2 . Max in Single Turn 1 | . 1 . Machines Repaired . | . . . Machines Dismantled . | . . . Machines Sabotaged . | . . . Overloaded Fab Kills . | . . . Hacking | -11 -10 -9 --------- Run | Yrd Mat Mat Machines Accessed . | . . . Terminals . | . . . Fabricators . | . . . Repair Stations . | . . . Recycling Units . | . . . Scanalyzers . | . . . Garrison Access . | . . . Total Hacks . | . . . Successful . | . . . Failed . | . . . Catastrophic . | . . . Database Lockouts . | . . . Manual . | . . . Terminals . | . . . Fabricators . | . . . Repair Stations . | . . . Recycling Units . | . . . Scanalyzers . | . . . Garrison Access . | . . . Terminal Hacks . | . . . Fabricator Hacks . | . . . Repair Station Hacks . | . . . Recycling Unit Hacks . | . . . Scanalyzer . | . . . Garrison Access Hacks . | . . . Unauthorized Hacks . | . . . Terminals . | . . . Fabricators . | . . . Repair Stations . | . . . Recycling Units . | . . . Scanalyzers . | . . . Garrison Access . | . . . Data Cores Recovered . | . . . Used . | . . . Hacking Detections . | . . . Full Trace Events . | . . . Feedback Events . | . . . Feedback Blocked . | . . . Robot Schematics Acquired . | . . . Robots Built . | . . . Authchips . | . . . Time . | . . . Total Robot Build Rating . | . . . Part Schematics Acquired . | . . . Parts Built . | . . . Authchips . | . . . Time . | . . . Total Part Build Rating . | . . . Parts Repaired . | . . . Time . | . . . Parts Recycled . | . . . Recycled Matter . | . . . Retrieved Matter . | . . . Retrieved Components . | . . . Parts Scanalyzed . | . . . Part Schematics Acquired . | . . . Parts Damaged . | . . . Bothacking | -11 -10 -9 ------------ Run | Yrd Mat Mat Used RIF Installer . | . . . Robots Hacked . | . . . Non-combat . | . . . Combat . | . . . Robot Hacks Applied . | . . . Relay Couplers Released . | . . . Fabnet Peak Effective % . | . . . Robots Rewired . | . . . Allies Hacked . | . . . Hacks Repelled . | . . . Allies | -11 -10 -9 -------- Run | Yrd Mat Mat Total Allies . | . . . Largest Group . | . . . Highest-Rated Group . | . . . Highest-Rated Ally . | . . . Total Orders . | . . . Ally Attacks . | . . . Total Damage . | . . . Kills . | . . . Allies Corrupted . | . . . Allies Melted . | . . . Intel | -11 -10 -9 ------- Run | Yrd Mat Mat Robot Analysis Total . | . . . Derelict Logs Recovered . | . . . Drone Launches . | . . . Drone Recoveries . | . . . Exploration | -11 -10 -9 ------------- Run | Yrd Mat Mat Turns Passed 288 | 7 161 120 Spaces Moved 160 | 4 78 78 Core . | . . . Treads . | . . . Legs 160 | 4 78 78 Wheels . | . . . Hover . | . . . Flight . | . . . Fastest Speed 120 | 120 120 120 Average Speed 120 | 120 120 120 Slowest Speed 120 | 120 120 120 Overloaded Moves . | . . . Propulsion Burnouts . | . . . Robots Hopped . | . . . Cave-ins Triggered . | . . . Exploration Rate (%) 15 | 2 29 14 Regions Visited 2 Branch Regions . Pre-discovered Areas . | . . . Known Exits Taken . | . . . Unknown Exits Taken 2 | 1 1 . Scrap Searched . | . . . Spaces Dug . | . . . Terrain Destroyed 13 | . 13 . Melee . | . . . Projectile . | . . . AOE 13 | . 13 . Terrain Rammed . | . . . Walls Destroyed . | . . . Machines Disabled . | . . . Actions | -11 -10 -9 --------- Run | Yrd Mat Mat Total 202 | 5 108 89 Wait 9 | . 9 . Move 158 | 3 77 78 Hop . | . . . Pick Up . | . . . Fast Attach 4 | 2 1 1 Attach . | . . . Detach . | . . . Swap 2 | . . 2 Drop . | . . . Fire 29 | . 21 8 Melee . | . . . Ram . | . . . Kick . | . . . Crush . | . . . Escape Stasis . | . . . Rewire . | . . . Trap . | . . . Miscellaneous . | . . . Route ------- -11/Scrapyard -10/Materials -9/Materials History --------- Turn | Location | Event 1 | -11/Scrapyard | Upgraded with Propulsion slot (x2) 1 | -11/Scrapyard | Upgraded with Utility slot (x1) 1 | -11/Scrapyard | Upgraded with Weapon slot (x1) 1 | -11/Scrapyard | Discovered new exit (range 0) 8 | -11/Scrapyard | Entered Materials 105 | -10/Materials | Core integrity fell below 50% 152 | -10/Materials | Discovered new exit (range 14) 169 | -10/Materials | Entered another Materials area 170 | -9/Materials | Core integrity fell below 50% 171 | -9/Materials | Reached level 2 274 | -9/Materials | Core integrity fell below 20% 289 | -9/Materials | Destroyed by Y-45 Defender with Heavy Assault Rifle Last Messages --------------- 00112_ U-05 Engineer destroyed. 00113_ U-05 Engineer lays Concrete. 00124_ R-06 Scavenger collects Lgt. Ion Engine. 00124_ U-05 Engineer lays Concrete. 00126_ Acquired Terrain Scanner. 00127_ U-05 Engineer lays Concrete. 00132_ K-01 Serf collects debris. 00152_ EXIT=FOUND 00157_ K-01 Serf collects debris. 00161_ K-01 Serf cleans the Matter Pump. LOCATION=UNKNOWN GOAL=ESCAPE 00171_ Reached level 2. 00171_ Upgraded: Inventory Capacity (+3) 00175_ Acquired Imp. Aluminum Leg. 00222_ K-01 Serf collects debris. 00254_ Y-45 Defender suffers critical hit (Destroy). 00254_ Destroyed Lgt. Treads. 00256_ Critical hit (Burn: +37). 00288_ Acquired Minigun. Map ----- +----------------------------------------------------+ | | | | | | | | | | | | | | | | | | | | | | | | | | | | | | | | | | | | | | | | | | | ???????????????????????????????????#??#??????????? | | ????????????????????????????#??????#?????????????? | | ?????????????????#?????########??????????????????? | | ???????????????????#??##[[[[!!######?????????????? | | ???????????????????????#[@ [!!# #?????????????? | | #????????????########### # #?????????????? | | #????????????# ## # #?????????????? | | #????????????# " #?????????????? | | #????????????# # #?#???????????? | | #?#??????#???# # Y Y ### #?????? | | #?#?????#????# # #?????? | | #????????????# # ############ ##????? | | #??#?????????# /u #??????#?????? #?????? | | #??????????#?# # #????????????????#?????? | | ##########???# ?#u #?? ???????????????????? | | # #???#+###+#### #??????????????"???????? | | + """ #???# #?????????#???"?"? ????? | | # "R" #???# +??????????????????????? | | # " " ##### "" # ????????#????????????? | | # + "" #???????#??????????????? | | # """ ##### T" #?????????????????????? | | # """ #??"" "" #T?#??????????????????? | | # """ #?"Y "" ????????????????????? | | # #?""" ???????????????????? | | ####+#####?### ??????????????????? | | ????????????? ####??????????????????? | | ???????????? #?????????????????????? | | ??????????? = #?????????????????????? | | ???????????# #?????????????????????? | +----------------------------------------------------+ Best States ------------- Heat Dissipation 25 Energy Generation 10 Energy Capacity 125 Matter Stores 300 Matter Capacity 300 Sight Range 16 Terrain Scan Range 14 Terrain Scan Density 10 Evasion (%) 55 Item Schematics ----------------- None Robot Schematics ------------------ None Fabricated ------------ Nothing Alien Tech Used ----------------- None Achievements -------------- None Challenges ------------ None RPGLIKE | -11 -10 -9 --------- Run | Yrd Mat Mat Levels Raised 1 | . . 1 XP Earned 4900 | 3000 400 1500 XP Spent 3800 | 2300 . 1500 Upgrades 7 | 4 . 3 Propulsion Slot 2 | 2 . . Utility Slot 1 | 1 . . Weapon Slot 1 | 1 . . Inventory Capacity 3 | . . 3 Protomatter Created . | . . . Protomatter Decayed . | . . . Game ------ Seed ControlDecoyImmobilizer Manual? 0 Play Time 00:04:08 Cumulative 24.5 hours Start 2024.09.20 @ 21:08:21 End 2024.09.20 @ 21:11:18 Sessions 1 Manual Loads 0 Difficulty Rogue Special Mode Winter2019/RPGLIKE Game No. 100 Rogue 96 Adventurer 4 Explorer 0 Win Type - Total 0 Types 0/0/0/0/0/0/0/0/0 Lore% 12 Gallery% 28 Achievement% 18 Wizard Run 0 Options --------- Layout 2 ASCII 0 Keyboard 0 Movement Mouse Keybinds 0 Fullscreen 1 Font 16/SmallcapsGlow Map View 55x47 Zoom Use 0% Tactical HUD 1 Map Filters NONE Filters NONE Steam 1 RUN: 337ade70-afee-474b-9e3e-cdba1a4c27cc